bitfinex-derivatives/quotes_SOLF0:USTF0_20260215
["timestamp","ask_amount","ask_price","bid_price","bid_amount"]
[1771188326982,3.6033593,85.829,85.79,2.78802231]
[1771188327285,7.17747056,85.828,85.8,2.78802231]
[1771188327484,7.17122917,85.84,85.8,2.78802231]
[1771188327688,3.6033593,85.838,85.792,11.79383524]
[1771188327891,2.78802231,85.85,85.792,11.79383524]
[1771188327892,3.6033593,85.836,85.792,11.79383524]
[1771188328284,3.6033593,85.836,85.8,2.78802231]
[1771188331990,3.6033593,85.836,85.794,10.497]
[1771188332195,3.6033593,85.836,85.783,11.70040566]
[1771188333496,3.6033593,85.836,85.79,2.78802231]
[1771188335703,3.6033593,85.836,85.783,11.70040566]
[1771188335704,3.6033593,85.832,85.764,1.22167999]
[1771188336004,3.6033593,85.829,85.78,2.78802231]
[1771188336804,3.6033593,85.828,85.78,2.78802231]
[1771188338001,3.6033593,85.828,85.78,4.0774627]
[1771188339006,3.6033593,85.828,85.79,2.78802231]
[1771188339809,3.6033593,85.825,85.79,2.78802231]
[1771188340012,3.6033593,85.825,85.78,4.0774627]
[1771188340712,3.6033593,85.823,85.78,4.0774627]
[1771188345118,3.6033593,85.823,85.781,10.4985]
[1771188348311,3.6033593,85.823,85.782,0.94440684]
[1771188351816,93.0,85.845,85.78,2.78225274]
[1771188351817,3.70096857,85.821,85.78,2.78225274]
[1771188352024,10.4936,85.822,85.773,10.4995]
[1771188352025,3.70096857,85.819,85.773,10.4995]
[1771188354526,3.70096857,85.819,85.78,10.4987]
[1771188355722,2.78225274,85.83,85.78,10.4987]
[1771188355723,7.16993289,85.829,85.788,0.882937]
[1771188356021,7.16993289,85.828,85.788,0.882937]
[1771188356217,7.16993289,85.827,85.788,0.882937]
[1771188356524,10.87090146,85.826,85.788,0.882937]
[1771188356723,7.16993289,85.825,85.788,0.882937]
[1771188357024,3.70096857,85.826,85.788,0.882937]
[1771188357225,7.17300373,85.825,85.788,0.882937]
[1771188357419,3.70096857,85.826,85.788,0.882937]
[1771188357722,10.87501524,85.825,85.788,0.882937]
[1771188357923,3.70096857,85.825,85.788,0.882937]
[1771188360916,3.70096857,85.823,85.779,10.4988]
[1771188361120,3.70096857,85.821,85.779,10.4988]
[1771188361422,3.70096857,85.819,85.779,10.4988]
[1771188362320,10.4934,85.824,85.779,10.4988]
[1771188362321,3.70096857,85.817,85.779,10.4988]
[1771188364223,3.70096857,85.815,85.779,10.4988]
[1771188364628,3.70096857,85.815,85.78,2.78225274]
[1771188365328,7.19495225,85.814,85.78,2.78225274]
[1771188365528,3.70096857,85.815,85.78,2.78225274]
[1771188366025,10.89592082,85.814,85.78,2.78225274]
[1771188366230,7.20067664,85.813,85.78,2.78225274]
[1771188366430,7.20067664,85.812,85.78,2.78225274]
[1771188366632,7.20067664,85.811,85.78,2.78225274]
[1771188366833,3.70096857,85.809,85.77,2.78225274]
[1771188367022,3.70096857,85.807,85.77,2.78225274]
[1771188368423,10.90495121,85.806,85.77,2.78225274]
[1771188368731,10.90495121,85.805,85.77,2.78225274]
[1771188368930,3.70096857,85.805,85.77,2.78225274]
[1771188369330,7.21010164,85.804,85.77,2.78225274]
[1771188369531,3.70096857,85.805,85.77,2.78225274]
[1771188369732,7.21010164,85.804,85.77,2.78225274]
[1771188369931,3.70096857,85.805,85.77,3.60884778]
[1771188370229,7.21010157,85.804,85.77,3.60884778]
[1771188370426,7.21010157,85.803,85.77,3.60884778]
[1771188370735,3.70096857,85.805,85.77,3.60884778]
[1771188371036,7.21336876,85.804,85.77,3.60884778]
[1771188371232,7.21336876,85.803,85.77,3.60884778]
[1771188371433,7.21336876,85.802,85.77,3.60884778]
[1771188371632,7.21336876,85.801,85.77,3.60884778]
[1771188371934,3.70096857,85.805,85.77,3.60884778]
[1771188372134,7.21758793,85.804,85.77,3.60884778]
[1771188372334,7.21758793,85.803,85.77,3.60884778]
[1771188372536,7.21758793,85.802,85.77,3.60884778]
[1771188372729,7.21758793,85.801,85.771,0.8075725]
[1771188372926,3.70096857,85.805,85.771,0.8075725]
[1771188373130,7.21729389,85.804,85.771,0.8075725]
[1771188373331,7.21729389,85.803,85.771,0.8075725]
[1771188373537,7.21729389,85.802,85.771,0.8075725]
[1771188373738,7.21729389,85.801,85.771,0.8075725]
[1771188373937,3.70096857,85.805,85.771,0.8075725]
[1771188374237,7.21748482,85.804,85.771,0.8075725]
[1771188374436,7.21748482,85.803,85.771,0.8075725]
[1771188374637,7.21748482,85.802,85.771,0.8075725]
[1771188374838,7.21748482,85.801,85.771,0.8075725]
[1771188375037,3.70096857,85.805,85.771,0.8075725]
[1771188375238,7.21776071,85.804,85.771,0.8075725]
[1771188375439,3.70096857,85.805,85.771,0.8075725]
[1771188375440,7.21776071,85.803,85.771,0.8075725]
[1771188375640,7.21776071,85.802,85.771,0.8075725]
[1771188375938,7.21776071,85.801,85.771,0.8075725]
[1771188376138,3.70096857,85.805,85.771,0.8075725]
[1771188376339,7.21929492,85.804,85.771,0.8075725]
[1771188376540,7.21929492,85.803,85.771,0.8075725]
[1771188376735,7.21929492,85.802,85.771,0.8075725]
[1771188377040,7.21929492,85.801,85.771,0.8075725]
[1771188377343,7.21929492,85.8,85.771,0.8075725]
[1771188377542,3.70096857,85.805,85.771,0.8075725]
[1771188377836,7.21961998,85.804,85.771,0.8075725]
[1771188378036,3.89891515,85.817,85.781,0.97977089]
[1771188378235,7.2196917,85.816,85.781,0.97977089]
[1771188378443,7.2196917,85.815,85.781,0.97977089]
[1771188378739,7.2196917,85.814,85.781,0.97977089]
[1771188378942,7.2196917,85.813,85.781,0.97977089]
[1771188379137,7.2196917,85.812,85.781,0.97977089]
[1771188379448,7.2196917,85.811,85.781,0.97977089]
[1771188379638,7.2196917,85.81,85.781,0.97977089]
[1771188379834,7.2196917,85.809,85.781,0.97977089]
[1771188380034,7.2196917,85.808,85.781,0.97977089]
[1771188380237,3.89891515,85.817,85.781,0.97977089]
[1771188380238,7.2196917,85.807,85.781,0.97977089]
[1771188380437,7.2196917,85.806,85.781,0.97977089]
[1771188380644,7.2196917,85.805,85.781,0.97977089]
[1771188380844,7.2196917,85.804,85.781,0.97977089]
[1771188381145,3.89891515,85.817,85.781,0.97977089]
[1771188381334,3.89891515,85.815,85.781,0.97977089]
[1771188381533,7.21565821,85.814,85.781,0.97977089]
[1771188381733,7.21565821,85.813,85.781,0.97977089]
[1771188381934,7.21565821,85.812,85.781,0.97977089]
[1771188382141,7.21565821,85.811,85.781,0.97977089]
[1771188382339,7.21565821,85.81,85.781,0.97977089]
[1771188382643,7.21565821,85.809,85.781,0.97977089]
[1771188382943,7.21565821,85.808,85.781,0.97977089]
[1771188383143,7.21565821,85.807,85.781,0.97977089]
[1771188383340,7.21565821,85.806,85.781,0.97977089]
[1771188383542,7.21565821,85.805,85.781,0.97977089]
[1771188383842,7.21565821,85.804,85.781,0.97977089]
[1771188384045,3.89891515,85.815,85.781,0.97977089]
[1771188384345,7.2159106,85.814,85.781,0.97977089]
[1771188384641,7.2159106,85.813,85.781,0.97977089]
[1771188384839,7.2159106,85.812,85.781,0.97977089]
[1771188385042,7.2159106,85.811,85.781,0.97977089]
[1771188385236,7.2159106,85.81,85.781,0.97977089]
[1771188385437,7.2159106,85.809,85.781,0.97977089]
[1771188385638,7.2159106,85.808,85.781,0.97977089]
[1771188385835,7.2159106,85.807,85.781,0.97977089]
[1771188386045,7.2159106,85.806,85.781,0.97977089]
[1771188386340,3.89891515,85.804,85.77,2.78225274]
[1771188386544,3.89891515,85.802,85.766,0.86491316]
[1771188386744,3.89891515,85.8,85.766,0.86491316]
[1771188386946,3.89891515,85.798,85.766,0.86491316]
[1771188388344,3.89891515,85.825,85.781,0.92076067]
[1771188388542,3.89891515,85.823,85.781,0.92076067]
[1771188388740,3.89891515,85.821,85.781,0.92076067]
[1771188388944,3.89891515,85.819,85.781,0.92076067]
[1771188389140,3.89891515,85.817,85.781,0.92076067]
[1771188389341,3.89891515,85.815,85.781,0.92076067]
[1771188389542,7.21619435,85.814,85.781,0.92076067]
[1771188389849,11.1151095,85.813,85.781,0.92076067]
[1771188390146,7.21619435,85.812,85.781,0.92076067]
[1771188390448,7.21619435,85.811,85.781,0.92076067]
[1771188390650,7.21619435,85.81,85.781,0.92076067]
[1771188390947,7.21619435,85.809,85.781,0.92076067]
[1771188391143,7.21619435,85.808,85.781,0.92076067]
[1771188391446,7.21619435,85.807,85.781,0.92076067]
[1771188391646,7.21619435,85.806,85.781,0.92076067]
[1771188391848,3.89891515,85.813,85.781,0.92076067]
[1771188392148,7.21634695,85.812,85.781,0.92076067]
[1771188392348,7.21634695,85.811,85.781,0.92076067]
[1771188392544,7.21634695,85.81,85.781,0.92076067]
[1771188392747,7.21634695,85.809,85.781,0.92076067]
[1771188392944,7.21634695,85.808,85.781,0.92076067]
[1771188393145,7.21634695,85.807,85.781,0.92076067]
[1771188393345,3.89891515,85.805,85.76,3.66980082]
[1771188393552,3.89891515,85.799,85.74,24.27791572]
[1771188393853,3.89891515,85.797,85.74,24.27791572]
[1771188394050,3.89891515,85.795,85.74,24.27791572]
[1771188394243,7.21634695,85.794,85.74,24.27791572]
[1771188394442,3.89891515,85.792,85.74,2.78225274]
[1771188394644,3.89891515,85.79,85.74,2.78225274]
[1771188394849,2.78225274,85.8,85.74,2.78225274]
[1771188394850,3.89891515,85.788,85.75,10.5024]
[1771188395046,3.89891515,85.786,85.75,10.5024]
[1771188397150,3.89891515,85.786,85.75,13.28465274]
[1771188397852,3.89891515,85.786,85.742,10.5033]
[1771188398248,3.89891515,85.786,85.745,0.90019312]
[1771188398553,3.89891515,85.786,85.75,3.68244586]
[1771188403459,3.89891515,85.786,85.75,0.90019312]
[1771188403863,3.69119594,85.796,85.77,2.78225274]
[1771188404062,3.69119594,85.819,85.77,2.78225274]
[1771188404257,3.63728038,85.817,85.77,2.78225274]
[1771188404458,3.63728038,85.815,85.77,2.78225274]
[1771188404760,3.63728038,85.811,85.77,2.78225274]
[1771188404959,3.63728038,85.809,85.77,2.78225274]
[1771188405159,7.20434158,85.808,85.771,0.89574147]
[1771188405453,7.20434158,85.807,85.771,0.89574147]
[1771188405660,7.20434158,85.806,85.771,0.89574147]
[1771188405860,7.20434158,85.806,85.744,93.02]
[1771188405861,7.20434158,85.805,85.78,2.78225274]
[1771188406060,3.63728038,85.821,85.78,2.78225274]
[1771188406061,3.63728038,85.821,85.781,0.7594543]
[1771188406255,7.20485812,85.82,85.781,0.7594543]
[1771188406459,7.20485812,85.819,85.781,0.7594543]
[1771188406660,7.20485812,85.818,85.781,0.7594543]
[1771188406860,7.20485812,85.817,85.781,0.7594543]
[1771188407061,7.20485812,85.816,85.781,0.7594543]
[1771188407256,3.63728038,85.821,85.781,0.7594543]
[1771188407563,7.20504708,85.82,85.781,0.7594543]
[1771188407761,7.20504708,85.819,85.781,0.7594543]
[1771188408061,7.20504708,85.818,85.781,0.7594543]
[1771188408360,7.20504708,85.817,85.781,0.7594543]
[1771188408553,7.20504708,85.816,85.781,0.7594543]
[1771188408758,7.20504708,85.815,85.781,0.7594543]
[1771188408958,7.20504708,85.814,85.781,0.7594543]
[1771188409160,7.20504708,85.813,85.781,0.7594543]
[1771188409360,7.20504708,85.812,85.781,0.7594543]
[1771188409560,3.63728038,85.821,85.781,0.7594543]
[1771188409763,10.8808962,85.82,85.781,0.7594543]
[1771188409962,10.8808962,85.819,85.781,0.7594543]
[1771188410255,3.63728038,85.817,85.781,0.7594543]
[1771188410461,7.24361582,85.816,85.781,0.7594543]
[1771188410661,7.24361582,85.815,85.79,2.78194679]
[1771188410852,7.24361582,85.814,85.79,2.78194679]
[1771188411052,7.24361582,85.813,85.781,0.7594543]
[1771188411262,7.24361582,85.812,85.781,0.7594543]
[1771188411454,3.63728038,85.817,85.781,0.7594543]
[1771188411657,3.63728038,85.815,85.781,0.7594543]
[1771188411858,7.24313072,85.814,85.781,0.7594543]
[1771188412162,7.24313072,85.813,85.781,0.7594543]
[1771188412357,3.63728038,85.815,85.781,0.7594543]
[1771188412661,7.24283383,85.814,85.781,0.7594543]
[1771188412853,7.24283383,85.813,85.781,0.7594543]
[1771188413056,3.63728038,85.815,85.781,0.7594543]
[1771188413253,7.24283362,85.814,85.781,0.7594543]
[1771188413464,7.24283362,85.813,85.781,0.7594543]
[1771188413661,3.63728038,85.815,85.781,0.7594543]
[1771188413962,10.87983565,85.814,85.781,0.7594543]
[1771188414259,7.24255527,85.813,85.781,0.7594543]
[1771188414459,3.63728038,85.814,85.781,0.7594543]
[1771188414660,7.24229179,85.813,85.781,0.7594543]
[1771188414963,3.63728038,85.814,85.781,0.7594543]
[1771188415164,7.24229163,85.813,85.781,0.7594543]
[1771188415457,3.63728038,85.814,85.781,0.7594543]
[1771188415663,7.24204477,85.813,85.781,0.7594543]
[1771188415857,3.63728038,85.814,85.781,0.7594543]
[1771188416060,7.24204477,85.813,85.781,0.7594543]
[1771188416254,3.63728038,85.814,85.781,0.7594543]
[1771188416455,7.2418116,85.813,85.781,0.7594543]
[1771188416655,3.63728038,85.814,85.781,0.7594543]
[1771188416855,10.87909198,85.813,85.781,0.7594543]
[1771188417058,3.63728038,85.813,85.781,0.7594543]
[1771188419766,3.63728038,85.813,85.782,10.4984]
[1771188420162,3.63728038,85.824,85.783,0.88579996]
[1771188420468,3.63728038,85.822,85.787,10.4978]
[1771188420669,3.63728038,85.82,85.787,10.4978]
[1771188420863,3.63728038,85.818,85.787,10.4978]
[1771188423368,3.63728038,85.816,85.776,10.4992]
[1771188423565,3.63728038,85.814,85.776,10.4992]
[1771188423866,3.63728038,85.812,85.776,10.4992]
[1771188424065,2.78194679,85.82,85.758,0.85445345]
[1771188424066,3.63728038,85.809,85.764,10.5007]
[1771188424266,3.63728038,85.807,85.764,10.5007]
[1771188424467,3.63728038,85.805,85.764,10.5007]
[1771188424665,3.63728038,85.803,85.764,10.5007]
[1771188424869,3.63728038,85.801,85.764,10.5007]
[1771188430982,3.63728038,85.801,85.77,2.78194679]
[1771188431583,3.63728038,85.801,85.764,10.5007]
[1771188432784,3.63728038,85.811,85.771,1.12123762]
[1771188433082,3.63728038,85.809,85.771,1.12123762]
[1771188433282,3.63728038,85.807,85.771,1.12123762]
[1771188433483,7.23900269,85.806,85.771,1.12123762]
[1771188433787,3.92688024,85.817,85.773,1.10928632]
[1771188433981,3.92688024,85.815,85.78,2.78194679]
[1771188434186,11.16589688,85.814,85.78,2.78194679]
[1771188434387,7.23901664,85.813,85.78,2.78194679]
[1771188434587,7.23901664,85.812,85.78,2.78194679]
[1771188434781,7.23901664,85.811,85.78,2.78194679]
[1771188434981,3.92688024,85.813,85.78,2.78194679]
[1771188435182,7.23915586,85.812,85.775,1.10928632]
[1771188435385,7.23915586,85.811,85.775,1.10928632]
[1771188435586,10.4934,85.824,85.781,1.05434972]
[1771188435787,7.2392052,85.823,85.781,1.05434972]
[1771188435981,11.16608544,85.822,85.781,1.05434972]
[1771188436179,11.16608544,85.822,85.747,93.0]
[1771188436180,3.92688024,85.855,85.801,1.05434972]
[1771188436485,2.759e-05,85.854,85.84,2.78194679]
[1771188436691,3.92688024,85.867,85.84,2.78194679]
[1771188436885,3.92688024,85.867,85.813,1.05434972]
[1771188437191,3.92688024,85.859,85.813,1.05434972]
[1771188437990,3.92688024,85.856,85.813,1.05434972]
[1771188438682,3.92688024,85.856,85.79,93.02]
[1771188438683,3.92688024,85.925,85.851,1.05985531]
[1771188438884,3.92688024,85.925,85.87,2.78194679]
[1771188439182,3.92688024,85.919,85.87,2.78194679]
[1771188439791,3.92688024,85.919,85.88,2.78194679]
[1771188439984,3.92688024,85.948,85.91,4.679e-05]
[1771188440288,3.92688024,85.939,85.89,2.78194679]
[1771188441187,3.92688024,85.939,85.88,1.5373768]
[1771188441188,3.92688024,85.939,85.88,4.31932359]
[1771188441889,3.92688024,85.937,85.88,4.31932359]
[1771188442487,3.92688024,85.937,85.89,2.78194679]
[1771188442788,3.92688024,85.937,85.9,2.78194679]
[1771188445484,3.92688024,85.937,85.89,12.11466212]
[1771188445485,3.92688024,85.937,85.89,14.89660891]
[1771188445687,3.92688024,85.929,85.88,2.78194679]
[1771188447189,3.92688024,85.919,85.858,1.68132138]
[1771188447391,3.92688024,85.909,85.87,2.78194679]
[1771188448194,3.92688024,85.926,85.88,2.78194679]
[1771188450693,3.92688024,85.909,85.855,1.72911046]
[1771188450891,3.92688024,85.909,85.87,2.78194679]
[1771188451997,3.92688024,85.926,85.88,2.78194679]
[1771188452196,3.92688024,85.926,85.881,1.72941623]
[1771188452386,2.78194679,85.92,85.881,1.72941623]
[1771188452696,3.92688024,85.919,85.87,2.78194679]
[1771188455095,3.92688024,85.918,85.86,13.27084679]
[1771188455296,3.92688024,85.918,85.861,1.71785605]
[1771188455902,3.92688024,85.918,85.87,2.78194679]
[1771188456699,10.4821,85.917,85.87,2.78194679]
[1771188456896,3.92688024,85.916,85.871,1.71625723]
[1771188457099,3.92688024,85.93,85.881,1.71625723]
[1771188457600,6.70882703,85.93,85.881,1.71625723]
[1771188457993,3.92688024,85.929,85.881,1.71625723]
[1771188458997,3.92688024,85.943,85.843,92.92]
[1771188459199,6.70882703,85.93,85.88,2.78194679]
[1771188459398,3.92688024,85.929,85.86,1.71366569]
[1771188459604,3.92688024,85.909,85.86,1.71366569]
[1771188459900,3.92688024,85.909,85.851,1.71366569]
[1771188460399,2.78194679,85.9,85.851,1.71366569]
[1771188460600,3.92688024,85.899,85.851,1.71366569]
[1771188462704,2.78194679,85.91,85.791,35.03]
[1771188462705,3.92688024,85.889,85.833,1.68893777]
[1771188463205,3.92688024,85.889,85.835,10.4919]
[1771188463405,3.92688024,85.889,85.833,1.68893777]
[1771188463406,3.915162,85.859,85.791,1.68131444]
[1771188463603,3.915162,85.859,85.715,163.4367]
[1771188463604,2.78194679,85.83,85.781,1.68746687]
[1771188463803,2.78194679,85.8,85.75,2.78194679]
[1771188464001,3.915162,85.799,85.75,2.78194679]
[1771188464397,3.65264316,85.814,85.76,2.78194679]
[1771188464798,3.65264316,85.814,85.77,2.78194679]
[1771188466410,3.65264316,85.814,85.78,2.78194679]
[1771188467209,3.65264316,85.831,85.79,2.78194679]
[1771188467808,3.65264316,85.831,85.8,2.78194679]
[1771188468008,3.65264316,85.831,85.79,2.78194679]
[1771188468219,3.65264316,85.831,85.733,35.03]
[1771188468220,3.65264316,85.847,85.8,2.78194679]
[1771188469110,2.78194679,85.81,85.75,1.87805602]
[1771188469411,2.78194679,85.79,85.74,2.78194679]
[1771188469611,3.65264316,85.789,85.74,2.78194679]
[1771188469914,3.65264316,85.805,85.76,2.78194679]
[1771188471308,3.65264316,85.779,85.719,2.04498278]
[1771188471611,3.65264316,85.779,85.73,2.78194679]
[1771188472110,3.65264316,85.779,85.73,2.78534092]
[1771188472513,3.65264316,85.779,85.74,2.78534092]
[1771188473212,2.78534092,85.8,85.75,2.78534092]
[1771188474120,3.65264316,85.802,85.75,4.78863944]
[1771188474314,3.65264316,85.802,85.76,2.78534092]
[1771188475011,10.4955,85.807,85.751,2.00329852]
[1771188475215,3.65264316,85.859,85.801,2.00329852]
[1771188475415,2.78534092,85.85,85.801,2.00329852]
[1771188475613,3.65264316,85.849,85.8,2.78534092]
[1771188476111,3.65264316,85.849,85.784,2.07533744]
[1771188477830,3.65264316,85.846,85.784,2.07533744]
[1771188481512,3.65264316,85.844,85.784,2.07533744]
[1771188481914,3.65264316,85.842,85.784,2.07533744]
[1771188482617,128.03,85.879,85.767,93.0]
[1771188482618,3.65264316,85.838,85.768,12.5688841]
[1771188483718,3.65264316,85.836,85.768,12.5688841]
[1771188484722,3.65264316,85.829,85.768,12.5688841]
[1771188486019,3.65264316,85.829,85.769,2.05820467]
[1771188486427,3.65264316,85.854,85.795,2.05820467]
[1771188486820,4.316e-05,85.854,85.795,2.05820467]
[1771188487718,10.48974316,85.854,85.795,2.05820467]
[1771188487925,10.4897,85.854,85.795,2.05820467]
[1771188488822,3.65264316,85.849,85.795,2.05820467]
[1771188490523,3.65264316,85.847,85.795,2.05820467]
[1771188492526,14.14354316,85.845,85.795,2.05820467]
[1771188493431,3.76953197,85.844,85.795,2.05820467]
[1771188493618,14.26063197,85.843,85.795,2.05820467]
[1771188495926,3.76953197,85.842,85.795,2.05820467]
[1771188497923,3.76953197,85.842,85.8,2.78105154]
[1771188498226,3.76953197,85.84,85.8,2.78105154]
[1771188498629,3.76953197,85.84,85.795,2.05820467]
[1771188500522,10.4922,85.834,85.795,2.05820467]
[1771188500826,10.4922,85.834,85.79,2.78105154]
[1771188500827,3.76953197,85.833,85.79,2.78105154]
[1771188502830,3.76953197,85.831,85.79,2.78105154]
[1771188506129,10.4926,85.83,85.79,2.78105154]
[1771188506334,3.76953197,85.829,85.79,2.78105154]
[1771188510938,3.76953197,85.827,85.79,2.78105154]
[1771188521046,3.76953197,85.841,85.81,2.78105154]
[1771188521241,3.76953197,85.841,85.801,3.93867167]
[1771188522850,3.76953197,85.839,85.801,3.93867167]
[1771188523757,10.4916,85.838,85.801,3.93867167]
[1771188523952,3.76953197,85.839,85.802,3.72777382]
[1771188524249,3.80061537,85.858,85.811,3.70005845]
[1771188524448,3.80061537,85.858,85.82,2.78105154]
[1771188524643,3.80061537,85.858,85.83,2.78105154]
[1771188526153,3.80061537,85.858,85.821,3.70005845]
[1771188526553,3.80061537,85.854,85.81,2.78105154]
[1771188527754,10.4909,85.845,85.81,2.78105154]
[1771188530656,3.80061537,85.852,85.81,2.78105154]
[1771188530958,3.80061537,85.852,85.811,3.70005845]
[1771188531558,10.4902,85.851,85.811,3.70005845]
[1771188536960,14.29081537,85.851,85.811,3.70005845]
[1771188537357,10.4907,85.846,85.811,3.70005845]
[1771188537555,14.29131537,85.846,85.811,3.70005845]
[1771188538653,3.80061537,85.846,85.811,3.70005845]
[1771188540559,10.4898,85.854,85.82,2.78023167]
[1771188541363,14.29041537,85.854,85.82,2.78023167]
[1771188542162,10.77746478,85.895,85.781,92.98]
[1771188542163,3.80061537,85.879,85.83,2.78023167]
[1771188543267,3.80061537,85.861,85.82,2.78023167]
[1771188543760,3.80061537,85.852,85.81,2.78023167]
[1771188547065,3.80061537,85.852,85.812,10.4948]
[1771188547269,3.80061537,85.852,85.812,14.19485845]
[1771188547564,3.80061537,85.852,85.813,3.70005845]
[1771188549863,3.80061537,85.852,85.812,10.4948]
[1771188553166,3.80061537,85.852,85.815,3.70005845]
[1771188555866,3.81487661,85.845,85.81,2.78023167]
[1771188556072,3.81487661,85.845,85.803,3.67878381]
[1771188557870,3.81487661,85.842,85.8,2.78023167]
[1771188558178,3.81487661,85.842,85.801,3.67878381]
[1771188562073,3.81487661,85.842,85.769,21.09275092]
[1771188562074,3.81487661,85.836,85.79,2.78023167]
[1771188563274,3.81487661,85.834,85.79,6.45901548]
[1771188563576,3.81487661,85.834,85.791,3.67878381]
[1771188563772,2.78023167,85.85,85.76,3.67878381]
[1771188563773,3.81487661,85.81,85.76,3.67878381]
[1771188564076,3.81487661,85.81,85.771,3.67878381]
[1771188566672,3.81487661,85.81,85.76,2.78023167]
[1771188566877,3.81487661,85.808,85.76,2.78023167]
[1771188567371,3.81487661,85.808,85.77,2.78023167]
[1771188568777,3.81487661,85.808,85.761,3.67878381]
[1771188569578,2.78023167,85.81,85.761,3.67878381]
[1771188569579,14.31047661,85.806,85.761,3.67878381]
[1771188569772,3.81487661,85.805,85.77,2.78023167]
[1771188570170,14.31077661,85.804,85.77,2.78023167]
[1771188570476,3.81487661,85.803,85.76,2.78023167]
[1771188570671,3.81487661,85.799,85.75,2.78023167]
[1771188571374,3.81487661,85.781,85.74,2.78023167]
[1771188572884,10.4989,85.779,85.74,2.78023167]
[1771188573285,2.78023167,85.79,85.737,3.67878381]
[1771188573286,10.4995,85.774,85.737,3.67878381]
[1771188573785,10.4995,85.774,85.74,2.78023167]
[1771188575184,10.4995,85.774,85.737,3.67878381]
[1771188575988,14.31437661,85.774,85.737,3.67878381]
[1771188576189,10.5,85.77,85.737,3.67878381]
[1771188576377,3.81487661,85.773,85.73,2.78023167]
[1771188576581,2.78023167,85.77,85.724,3.67878381]
[1771188576887,10.5004,85.767,85.74,2.78023167]
[1771188577478,10.4993,85.776,85.75,2.78023167]
[1771188578087,10.4993,85.776,85.74,2.78023167]
[1771188578088,3.81487661,85.775,85.74,2.78023167]
[1771188581780,3.81487661,85.773,85.74,2.78023167]
[1771188582284,10.5002,85.768,85.732,3.67878381]
[1771188582585,3.81487661,85.767,85.73,2.78023167]
[1771188582787,3.81487661,85.767,85.72,6.45901548]
[1771188582984,10.5014,85.759,85.72,6.45901548]
[1771188583384,3.91607636,85.758,85.711,10.5071]
[1771188583590,3.91607636,85.749,85.7,2.78023167]
[1771188584587,3.91607636,85.749,85.711,3.88761971]
[1771188584786,10.5024,85.751,85.72,2.78023167]
[1771188585893,10.5024,85.751,85.711,3.88761971]
[1771188585894,10.5033,85.743,85.711,3.88761971]
[1771188586094,14.48457276,85.743,85.7,2.78023167]
[1771188586288,3.98127276,85.742,85.7,2.78023167]
[1771188586486,3.98127276,85.729,85.69,2.78023167]
[1771188587785,10.5053,85.727,85.69,2.78023167]
[1771188588090,3.98127276,85.729,85.691,3.88761971]
[1771188588997,14.48627276,85.729,85.691,3.88761971]
[1771188591994,93.02,85.76,85.69,2.78023167]
[1771188591995,3.98127276,85.725,85.69,2.78023167]
[1771188592597,10.5061,85.72,85.68,6.66785138]
[1771188592991,10.5061,85.72,85.681,3.88761971]
[1771188595401,3.98127276,85.73,85.691,3.88761971]
[1771188595998,10.505,85.729,85.691,3.88761971]
[1771188596394,3.98127276,85.728,85.691,3.88761971]
[1771188596600,3.98127276,85.722,85.68,2.78873166]
[1771188597900,3.98127276,85.722,85.68,6.67635137]
[1771188599304,3.98127276,85.722,85.681,3.88761971]
[1771188599607,10.5043,85.735,85.691,3.88761971]
[1771188599805,14.48557276,85.735,85.691,3.88761971]
[1771188600000,14.48557276,85.735,85.691,1.58761971]
[1771188600198,3.98127276,85.735,85.7,2.78873166]
[1771188600601,3.98127276,85.747,85.7,2.78873166]
[1771188601004,3.98127276,85.739,85.69,2.78873166]
[1771188601199,3.98127276,85.739,85.619,163.6211]
[1771188601200,3.98127276,85.739,85.68,2.78873166]
[1771188601406,3.98127276,85.739,85.69,2.78873166]
[1771188601712,3.98127276,85.739,85.68,2.78873166]
[1771188602105,3.98127276,85.736,85.681,3.10500362]
[1771188602811,3.98127276,85.723,85.68,2.78873166]
[1771188603509,3.98127276,85.723,85.681,3.17871376]
[1771188603714,3.98127276,85.723,85.69,2.78873166]
[1771188611516,3.98127276,85.723,85.681,3.17871376]
[1771188612318,3.98127276,85.719,85.66,2.78873166]
[1771188612710,3.98127276,85.719,85.639,93.02]
[1771188612711,3.98127276,85.708,85.67,2.78873166]
[1771188614522,3.96383356,85.705,85.66,2.78873166]
[1771188614722,93.02,85.724,85.619,3.23816762]
[1771188614723,2.78873166,85.68,85.619,3.23816762]
[1771188614918,3.96383356,85.669,85.62,2.78873166]
[1771188615118,3.96383356,85.669,85.619,3.23816762]
[1771188615517,3.96383356,85.659,85.61,5.98609747]
[1771188615827,3.96383356,85.659,85.63,2.78873166]
[1771188616721,3.96383356,85.683,85.64,2.78873166]
[1771188617918,3.96383356,85.679,85.63,2.78873166]
[1771188618515,3.96383356,85.679,85.623,3.19736581]
[1771188618820,3.96383356,85.679,85.62,2.78873166]
[1771188619019,3.96383356,85.659,85.611,3.17931491]
[1771188619223,3.96383356,85.659,85.63,2.78873166]
[1771188619419,3.96383356,85.659,85.61,2.78873166]
[1771188619622,3.96383356,85.659,85.611,3.05522512]